fUSD/lending_fUSD_20260608
["ID","MTS","AMOUNT","RATE_DAILY","PERIOD"]
[424457518,1780926651000,-509.4,0.00022466,2]
[424457515,1780926651000,-2323.0,0.00022344,2]
[424457499,1780926651000,-788.36,0.00022,10]
[424457512,1780926651000,-152.0,0.0002218,10]
[424457504,1780926651000,-477.0,0.00022,2]
[424457506,1780926651000,-673.0,0.00022,2]
[424457516,1780926651000,-3551.6,0.00022353,2]
[424457509,1780926651000,-521.0,0.00022,2]
[424457522,1780926651000,-2900.0,0.000225,15]
[424457517,1780926651000,-1932.87,0.00022466,2]
[424457533,1780926651000,-151.0,0.000225,2]
[424457521,1780926651000,-171496.74,0.000225,2]
[424457523,1780926651000,-189.369969,0.000225,2]
[424457525,1780926651000,-189.369969,0.000225,2]
[424457526,1780926651000,-189.369969,0.000225,2]
[424457528,1780926651000,-151.0,0.000225,2]
[424457527,1780926651000,-165.022566,0.000225,2]
[424457524,1780926651000,-189.369969,0.000225,2]
[424457534,1780926651000,-182.328237,0.000225,2]
[424457529,1780926651000,-151.0,0.000225,2]
[424457535,1780926651000,-951.221767,0.000225,2]
[424457532,1780926651000,-151.0,0.000225,2]
[424457530,1780926651000,-151.0,0.000225,2]
[424457502,1780926651000,-1381.670952,0.00022,2]
[424457519,1780926651000,-791.49,0.00022466,2]
[424457505,1780926651000,-751.0,0.00022,2]
[424457476,1780926651000,-800.0,0.00021918,2]
[424457508,1780926651000,-4645.0,0.00022,2]
[424457475,1780926651000,-800.0,0.00021918,2]
[424457477,1780926651000,-800.0,0.00021918,2]
[424457480,1780926651000,-800.0,0.00021918,2]
[424457478,1780926651000,-800.0,0.00021918,2]
[424457479,1780926651000,-800.0,0.00021918,2]
[424457531,1780926651000,-151.0,0.000225,2]
[424457486,1780926651000,-350.0,0.00021918,2]
[424457484,1780926651000,-500.0,0.00021918,2]
[424457485,1780926651000,-406.0,0.00021918,2]
[424457481,1780926651000,-800.0,0.00021918,2]
[424457482,1780926651000,-671.02146225,0.00021918,2]
[424457483,1780926651000,-195.3,0.00021918,2]
[424457496,1780926651000,-500.0,0.00021993,2]
[424457503,1780926651000,-450.0,0.00022,2]
[424457497,1780926651000,-2405.55389863,0.00021993,2]
[424457488,1780926651000,-1073.0,0.00021918,2]
[424457489,1780926651000,-1041.0,0.00021918,2]
[424457487,1780926651000,-1420.0,0.00021918,2]
[424457494,1780926651000,-201.93286098,0.00021993,2]
[424457491,1780926651000,-275.0,0.00021993,2]
[424457493,1780926651000,-200.0,0.00021993,2]
[424457495,1780926651000,-10452.16335275,0.00021993,2]
[424457492,1780926651000,-151.0,0.00021993,2]
[424457498,1780926651000,-2000.0,0.00022,10]
[424457500,1780926651000,-30047.45671057,0.00022,2]
[424457501,1780926651000,-157.0,0.00022,7]
[424457507,1780926651000,-1880.0,0.00022,2]
[424457510,1780926651000,-2047.96,0.00022,2]
[424457490,1780926651000,-200.0,0.00021918,2]
[424457547,1780926651000,-151.0,0.00022541,2]
[424457582,1780926651000,-200.0,0.00023089,2]
[424457546,1780926651000,-275.0,0.00022541,2]
[424457569,1780926651000,-10120.20714548,0.00023,2]
[424457573,1780926651000,-751.0,0.00023,2]
[424457572,1780926651000,-477.0,0.00023,2]
[424457570,1780926651000,-1746.53,0.00023,7]
[424457571,1780926651000,-221.00653772,0.00023,3]
[424457578,1780926651000,-154.11033324,0.00023063,2]
[424457576,1780926651000,-4645.0,0.00023,2]
[424457581,1780926651000,-151.0,0.00023089,2]
[424457580,1780926651000,-275.0,0.00023089,2]
[424457587,1780926651000,-10120.20714548,0.000232,2]
[424457588,1780926651000,-500.0,0.0002322,7]
[424457583,1780926651000,-217.15233878,0.00023089,2]
[424457577,1780926651000,-521.0,0.00023,2]
[424457584,1780926651000,-500.0,0.00023089,2]
[424457579,1780926651000,-151.94731757,0.00023063,2]
[424457586,1780926651000,-152.0,0.00023119,13]
[424457590,1780926651000,-250.0,0.00023287,4]
[424457591,1780926651000,-250.0,0.00023288,4]
[424457592,1780926651000,-250.0,0.00023288,4]
[424457589,1780926651000,-164.72,0.00023246,4]
[424457598,1780926651000,-154.11033324,0.00023386,7]
[424457595,1780926651000,-250.0,0.00023329,4]
[424457597,1780926651000,-7130.07,0.00023378,7]
[424457593,1780926651000,-250.0,0.00023288,4]
[424457594,1780926651000,-250.0,0.00023288,4]
[424457596,1780926651000,-200.0,0.00023339,2]
[424457548,1780926651000,-200.0,0.00022541,2]
[424457567,1780926651000,-500.0,0.00023,20]
[424457568,1780926651000,-7732.05005673,0.00023,2]
[424457585,1780926651000,-2586.85809042,0.00023089,2]
[424457565,1780926651000,-1381.670952,0.00023,2]
[424457563,1780926651000,-159.0,0.00023,15]
[424457537,1780926651000,-951.221767,0.000225,2]
[424457538,1780926651000,-951.221764,0.000225,2]
[424457539,1780926651000,-151.0,0.000225,2]
[424457545,1780926651000,-747.80937859,0.0002254,2]
[424457542,1780926651000,-195.01339788,0.00022539,2]
[424457544,1780926651000,-599.60298507,0.0002254,2]
[424457540,1780926651000,-151.0,0.000225,2]
[424457541,1780926651000,-155.65892282,0.00022539,2]
[424457543,1780926651000,-151.0,0.0002254,2]
[424457549,1780926651000,-209.40437684,0.00022541,2]
[424457552,1780926651000,-4895.0,0.00022567,2]
[424457551,1780926651000,-2494.55939288,0.00022541,2]
[424457553,1780926651000,-200.0,0.00022567,2]
[424457536,1780926651000,-951.221767,0.000225,2]
[424457599,1780926651000,-151.94731757,0.00023386,7]
[424457550,1780926651000,-500.0,0.00022541,2]
[424457574,1780926651000,-673.0,0.00023,2]
[424457575,1780926651000,-1880.0,0.00023,2]
[424457564,1780926651000,-159.0,0.00023,10]
[424457561,1780926651000,-185.06,0.00022838,2]
[424457556,1780926651000,-1562.72,0.000227,14]
[424457558,1780926651000,-185.06,0.00022804,2]
[424457566,1780926651000,-436.41,0.00023,30]
[424457554,1780926651000,-10120.20714548,0.000226,2]
[424457560,1780926651000,-152.0,0.00022806,12]
[424457562,1780926651000,-700.0,0.00022946,7]
[424457559,1780926651000,-644.0,0.00022804,2]
[424457555,1780926651000,-168.37,0.00022603,2]
[424457557,1780926651000,-10120.20714548,0.000228,2]
[424457644,1780926652000,-275.0,0.00024185,2]
[424457642,1780926652000,-1424.53,0.00024174,2]
[424457638,1780926652000,-152.0,0.00024059,16]
[424457633,1780926652000,-216.0,0.0002404,3]
[424457637,1780926652000,-2323.0,0.0002404,3]
[424457636,1780926652000,-216.0,0.0002404,3]
[424457640,1780926652000,-200.0,0.0002411,2]
[424457639,1780926652000,-445.72,0.0002411,2]
[424457634,1780926652000,-2323.0,0.0002404,3]
[424457632,1780926652000,-2323.0,0.0002404,3]
[424457641,1780926652000,-209.1,0.00024137,2]
[424457635,1780926652000,-2323.0,0.0002404,3]
[424457631,1780926652000,-154.11033324,0.00024034,14]
[424457646,1780926652000,-200.0,0.00024185,2]
[424457628,1780926652000,-4645.0,0.00024,2]
[424457650,1780926652000,-6062.4496903,0.00024196,2]
[424457649,1780926652000,-2781.82699784,0.00024185,2]
[424457645,1780926652000,-151.0,0.00024185,2]
[424457643,1780926652000,-1400.1,0.00024174,2]
[424457647,1780926652000,-233.5188934,0.00024185,2]
[424457653,1780926652000,-3551.6,0.00024324,2]
[424457652,1780926652000,-334.0,0.00024303,2]
[424457654,1780926652000,-151.94731757,0.00024357,30]
[424457655,1780926652000,-154.11033324,0.00024357,30]
[424457663,1780926652000,-644.0,0.00024491,2]
[424457659,1780926652000,-2323.0,0.0002436,3]
[424457656,1780926652000,-160.0,0.0002436,3]
[424457664,1780926652000,-350.0,0.00024548,5]
[424457651,1780926652000,-7343.0,0.00024303,2]
[424457648,1780926652000,-500.0,0.00024185,2]
[424457600,1780926652000,-160.0,0.000234,3]
[424457629,1780926652000,-521.0,0.00024,2]
[424457660,1780926652000,-152.0,0.00024372,17]
[424457601,1780926652000,-160.0,0.000234,3]
[424457602,1780926652000,-152.0,0.00023432,14]
[424457604,1780926652000,-2000.0,0.00023613,2]
[424457607,1780926652000,-200.0,0.00023637,2]
[424457612,1780926652000,-151.94731757,0.0002371,7]
[424457608,1780926652000,-225.18697532,0.00023637,2]
[424457605,1780926652000,-275.0,0.00023637,2]
[424457611,1780926652000,-10120.20714548,0.000237,2]
[424457613,1780926652000,-154.11033324,0.0002371,14]
[424457609,1780926652000,-500.0,0.00023637,2]
[424457603,1780926652000,-10120.20714548,0.000235,2]
[424457606,1780926652000,-151.0,0.00023637,2]
[424457630,1780926652000,-151.94731757,0.00024034,14]
[424457614,1780926652000,-2323.0,0.0002372,3]
[424457626,1780926652000,-1880.0,0.00024,2]
[424457624,1780926652000,-673.0,0.00024,2]
[424457627,1780926652000,-382.0,0.00024,2]
[424457625,1780926652000,-3555.0,0.00024,2]
[424457616,1780926652000,-150.0,0.0002375,2]
[424457617,1780926652000,-159.0,0.00024,15]
[424457615,1780926652000,-152.0,0.00023746,15]
[424457619,1780926652000,-30000.0,0.00024,2]
[424457620,1780926652000,-6000.0,0.00024,2]
[424457621,1780926652000,-500.0,0.00024,2]
[424457618,1780926652000,-1381.670952,0.00024,2]
[424457623,1780926652000,-751.0,0.00024,2]
[424457622,1780926652000,-477.0,0.00024,2]
[424457610,1780926652000,-2682.57183977,0.00023637,2]
[424457661,1780926652000,-67143.0,0.000244,2]
[424457693,1780926652000,-811.803458,0.00024658,2]
[424457657,1780926652000,-160.0,0.0002436,3]
[424457691,1780926652000,-811.803458,0.00024658,2]
[424457695,1780926652000,-811.803458,0.00024658,2]
[424457692,1780926652000,-811.803458,0.00024658,2]
[424457699,1780926652000,-151.0,0.00024658,2]
[424457698,1780926652000,-811.803458,0.00024658,2]
[424457697,1780926652000,-151.0,0.00024658,2]
[424457703,1780926652000,-151.0,0.00024658,2]
[424457707,1780926652000,-151.0,0.00024658,2]
[424457713,1780926652000,-151.0,0.00024658,2]
[424457710,1780926652000,-151.0,0.00024658,2]
[424457715,1780926652000,-151.0,0.00024658,2]
[424457706,1780926652000,-151.0,0.00024658,2]
[424457704,1780926652000,-811.803458,0.00024658,2]
[424457694,1780926652000,-811.803458,0.00024658,2]
[424457705,1780926652000,-151.0,0.00024658,2]
[424457709,1780926652000,-811.803458,0.00024658,2]
[424457711,1780926652000,-811.803458,0.00024658,2]
[424457712,1780926652000,-151.0,0.00024658,2]
[424457717,1780926652000,-151.0,0.00024658,2]
[424457716,1780926652000,-811.803458,0.00024658,2]
[424457719,1780926652000,-151.0,0.00024658,2]
[424457718,1780926652000,-811.803458,0.00024658,2]
[424457722,1780926652000,-811.803455,0.00024658,2]
[424457720,1780926652000,-811.803458,0.00024658,2]
[424457721,1780926652000,-151.0,0.00024658,2]
[424457724,1780926652000,-188.809671,0.00024658,2]
[424457723,1780926652000,-151.0,0.00024658,2]
[424457662,1780926652000,-482.18,0.00024448,2]
[424457708,1780926652000,-151.0,0.00024658,2]
[424457696,1780926652000,-811.803458,0.00024658,2]
[424457714,1780926652000,-811.803458,0.00024658,2]
[424457689,1780926652000,-811.803458,0.00024658,2]
[424457658,1780926652000,-2323.0,0.0002436,3]
[424457665,1780926652000,-168.94684495,0.0002455,15]
[424457666,1780926652000,-209.05,0.000246,5]
[424457701,1780926652000,-151.0,0.00024658,2]
[424457676,1780926652000,-151.0,0.00024658,2]
[424457667,1780926652000,-719.1,0.000246,5]
[424457670,1780926652000,-1200.0,0.000246,2]
[424457669,1780926652000,-2826.04,0.000246,5]
[424457672,1780926652000,-250.0,0.000246,7]
[424457673,1780926652000,-168.92431803,0.00024655,2]
[424457674,1780926652000,-167.67542103,0.00024658,2]
[424457675,1780926652000,-151.0,0.00024658,2]
[424457671,1780926652000,-1746.53,0.000246,7]
[424457677,1780926652000,-151.0,0.00024658,2]
[424457668,1780926652000,-1277.72,0.000246,5]
[424457678,1780926652000,-151.0,0.00024658,2]
[424457688,1780926652000,-811.803458,0.00024658,2]
[424457702,1780926652000,-811.803458,0.00024658,2]
[424457700,1780926652000,-811.803458,0.00024658,2]
[424457686,1780926652000,-1000.0,0.00024658,2]
[424457687,1780926652000,-174.71,0.00024658,2]
[424457682,1780926652000,-151.0,0.00024658,2]
[424457690,1780926652000,-811.803458,0.00024658,2]
[424457685,1780926652000,-231.577857,0.00024658,2]
[424457683,1780926652000,-151.0,0.00024658,2]
[424457679,1780926652000,-151.0,0.00024658,2]
[424457680,1780926652000,-151.0,0.00024658,2]
[424457681,1780926652000,-151.0,0.00024658,2]
[424457684,1780926652000,-151.0,0.00024658,2]
[424457747,1780926653000,-4000.0,0.00024874,4]
[424457739,1780926653000,-275.0,0.00024733,2]
[424457754,1780926653000,-500.0,0.0002491,11]
[424457743,1780926653000,-500.0,0.00024733,2]
[424457753,1780926653000,-171496.74,0.000249,2]
[424457738,1780926653000,-152.0,0.00024685,18]
[424457733,1780926653000,-160.0,0.0002468,3]
[424457736,1780926653000,-151.94731757,0.00024681,30]
[424457740,1780926653000,-151.0,0.00024733,2]
[424457737,1780926653000,-154.11033324,0.00024681,60]
[424457730,1780926653000,-160.0,0.0002468,3]
[424457731,1780926653000,-2323.0,0.0002468,3]
[424457735,1780926653000,-2360.0,0.0002468,3]
[424457741,1780926653000,-200.0,0.00024733,2]
[424457729,1780926653000,-160.0,0.0002468,3]
[424457732,1780926653000,-160.0,0.0002468,3]
[424457725,1780926653000,-1864.79,0.00024658,2]
[424457726,1780926653000,-359.65,0.00024675,7]
[424457727,1780926653000,-2323.0,0.0002468,3]
[424457728,1780926653000,-160.0,0.0002468,3]
[424457745,1780926653000,-2047.96,0.00024763,7]
[424457734,1780926653000,-2323.0,0.0002468,3]
[424457742,1780926653000,-242.15909246,0.00024733,2]
[424457751,1780926653000,-2560.48749773,0.00024897,7]
[424457746,1780926653000,-206.0,0.00024815,2]
[424457744,1780926653000,-2884.75459676,0.00024733,2]
[424457772,1780926653000,-717363.68155089,0.00025,2]
[424457771,1780926653000,-170.13510449,0.00025,2]
[424457770,1780926653000,-2237.47275222,0.00025,2]
[424457769,1780926653000,-40707.29858851,0.00025,7]
[424457768,1780926653000,-7248.72803835,0.00025,2]
[424457764,1780926653000,-2000.0,0.00025,2]
[424457761,1780926653000,-1132.67442433,0.00025,2]
[424457760,1780926653000,-500.0,0.00024999,12]
[424457763,1780926653000,-1814.94880248,0.00025,2]
[424457762,1780926653000,-210.98397453,0.00025,2]
[424457759,1780926653000,-152.0,0.00024998,19]
[424457758,1780926653000,-151.0,0.00024997,7]
[424457757,1780926653000,-400.0,0.0002497,2]
[424457767,1780926653000,-3094.52102683,0.00025,2]
[424457766,1780926653000,-621.0522049,0.00025,2]
[424457755,1780926653000,-400.0,0.0002497,2]
[424457756,1780926653000,-400.0,0.0002497,2]
[424457749,1780926653000,-216.4803166,0.00024897,7]
[424457748,1780926653000,-200.0,0.00024882,2]
[424457752,1780926653000,-159.0,0.000249,20]
[424457765,1780926653000,-540.0,0.00025,2]
[424457750,1780926653000,-15229.32,0.00024897,7]
[424457773,1780926654000,-4444.265,0.00025,2]
[424457811,1780926655000,-5530.0,0.000251,3]
[424457802,1780926655000,-153.78,0.00025,2]
[424457812,1780926655000,-700.0,0.00025138,7]
[424457810,1780926655000,-7130.07,0.00025066,7]
[424457805,1780926655000,-153.78,0.00025,2]
[424457809,1780926655000,-1255.76,0.00025049,2]
[424457807,1780926655000,-3000.0,0.00025,3]
[424457806,1780926655000,-153.78,0.00025,2]
[424457815,1780926655000,-482.02,0.0002527,2]
[424457808,1780926655000,-151.94731757,0.00025005,60]
[424457814,1780926655000,-298.5,0.00025177,2]
[424457827,1780926655000,-437.12118883,0.00025397,2]
[424457816,1780926655000,-151.0,0.00025279,2]
[424457813,1780926655000,-2323.0,0.00025165,3]
[424457818,1780926655000,-295.05457785,0.00025279,2]
[424457817,1780926655000,-621.78829552,0.00025279,2]
[424457820,1780926655000,-153.02949016,0.00025281,2]
[424457819,1780926655000,-275.0,0.00025281,2]
[424457823,1780926655000,-500.0,0.00025281,2]
[424457833,1780926655000,-312.56513106,0.00025417,2]
[424457822,1780926655000,-251.11897888,0.00025281,2]
[424457824,1780926655000,-2991.49051684,0.00025281,2]
[424457804,1780926655000,-153.78,0.00025,2]
[424457825,1780926655000,-152.0,0.00025312,20]
[424457826,1780926655000,-350.0,0.00025394,6]
[424457821,1780926655000,-200.0,0.00025281,2]
[424457801,1780926655000,-153.78,0.00025,2]
[424457791,1780926655000,-689.73839937,0.00025,2]
[424457800,1780926655000,-153.78,0.00025,2]
[424457828,1780926655000,-353.11438593,0.00025397,2]
[424457774,1780926655000,-19.57203239,0.000149,2]
[424457775,1780926655000,-2249.97517223,0.000149,2]
[424457776,1780926655000,-2280.00065248,0.000149,2]
[424457778,1780926655000,-392591.05661024,0.00025,2]
[424457784,1780926655000,-216909.85322945,0.00025,2]
[424457777,1780926655000,-495.225754,0.00019,2]
[424457783,1780926655000,-244.17,0.00025,5]
[424457782,1780926655000,-300.0,0.00025,28]
[424457781,1780926655000,-2000.0,0.00025,7]
[424457786,1780926655000,-189.369969,0.00025,2]
[424457780,1780926655000,-539.30694186,0.00025,30]
[424457803,1780926655000,-153.78,0.00025,2]
[424457779,1780926655000,-1357.23873866,0.00025,4]
[424457788,1780926655000,-189.369962,0.00025,2]
[424457798,1780926655000,-153.78,0.00025,2]
[424457789,1780926655000,-496.43652541,0.00025,2]
[424457790,1780926655000,-764.0100459,0.00025,2]
[424457787,1780926655000,-189.369969,0.00025,2]
[424457796,1780926655000,-1658.06917943,0.00025,7]
[424457795,1780926655000,-172.0,0.00025,7]
[424457797,1780926655000,-153.78,0.00025,2]
[424457793,1780926655000,-4652.19540715,0.00025,2]
[424457792,1780926655000,-1882.9547525,0.00025,2]
[424457794,1780926655000,-539.30567759,0.00025,2]
[424457799,1780926655000,-153.78,0.00025,2]
[424457785,1780926655000,-189.369969,0.00025,2]
[424457830,1780926655000,-179.7283781,0.00025397,2]
[424457854,1780926655000,-550.0,0.00026,2]
[424457831,1780926655000,-173.15844428,0.00025397,2]
[424457865,1780926655000,-350.0,0.00026151,7]
[424457863,1780926655000,-482.18,0.00026111,2]
[424457859,1780926655000,-9791.0,0.00026039,2]
[424457867,1780926655000,-1255.75,0.00026223,2]
[424457868,1780926655000,-152.0,0.00026251,23]
[424457866,1780926655000,-2323.0,0.0002622,3]
[424457869,1780926655000,-500.0,0.00026272,14]
[424457872,1780926655000,-275.0,0.00026377,2]
[424457883,1780926655000,-1488.266505,0.00026384,2]
[424457882,1780926655000,-1488.266505,0.00026384,2]
[424457871,1780926655000,-2217.1190696,0.00026342,2]
[424457876,1780926655000,-1488.266505,0.00026384,2]
[424457862,1780926655000,-6000.0,0.000261,2]
[424457879,1780926655000,-1488.266505,0.00026384,2]
[424457880,1780926655000,-1488.266505,0.00026384,2]
[424457877,1780926655000,-1488.266505,0.00026384,2]
[424457878,1780926655000,-1488.266505,0.00026384,2]
[424457881,1780926655000,-1488.266505,0.00026384,2]
[424457874,1780926655000,-1488.266505,0.00026384,2]
[424457887,1780926655000,-1488.266505,0.00026384,2]
[424457886,1780926655000,-1488.266505,0.00026384,2]
[424457888,1780926655000,-1488.266505,0.00026384,2]
[424457885,1780926655000,-1488.266505,0.00026384,2]
[424457884,1780926655000,-1488.266505,0.00026384,2]
[424457889,1780926655000,-1488.266505,0.00026384,2]
[424457829,1780926655000,-270.82528737,0.00025397,2]
[424457875,1780926655000,-1488.266505,0.00026384,2]
[424457861,1780926655000,-30000.0,0.000261,2]
[424457873,1780926655000,-1488.266505,0.00026384,2]
[424457870,1780926655000,-3551.6,0.00026296,2]
[424457832,1780926655000,-500.0,0.00025412,7]
[424457864,1780926655000,-482.13,0.00026113,2]
[424457835,1780926655000,-152.0,0.00025625,21]
[424457845,1780926655000,-181.37041115,0.00025829,2]
[424457846,1780926655000,-1463.13,0.00025867,2]
[424457834,1780926655000,-1255.76,0.0002544,2]
[424457837,1780926655000,-160.99168148,0.0002569,60]
[424457844,1780926655000,-202.68957881,0.00025829,2]
[424457841,1780926655000,-1400.1,0.00025786,2]
[424457836,1780926655000,-200.0,0.00025654,2]
[424457843,1780926655000,-275.0,0.00025829,2]
[424457838,1780926655000,-5530.0,0.000257,5]
[424457842,1780926655000,-207.23,0.00025806,2]
[424457839,1780926655000,-437.4,0.00025767,2]
[424457855,1780926655000,-244.15,0.00026,3]
[424457847,1780926655000,-1864.79,0.00025875,2]
[424457858,1780926655000,-318.37,0.00026027,7]
[424457848,1780926655000,-285.0,0.00025928,2]
[424457852,1780926655000,-4600.2743433,0.00026,2]
[424457850,1780926655000,-152.0,0.00025938,22]
[424457853,1780926655000,-151.0,0.00026,4]
[424457856,1780926655000,-233.46,0.00026027,7]
[424457851,1780926655000,-220.16143103,0.00026,2]
[424457849,1780926655000,-299.11,0.00025935,30]
[424457840,1780926655000,-450.0,0.00025767,2]
[424457857,1780926655000,-213.82,0.00026027,7]
[424457860,1780926655000,-501.0,0.00026039,2]
[424457926,1780926656000,-702.0,0.00027137,2]
[424457929,1780926656000,-200.0,0.00027197,2]
[424457925,1780926656000,-1125.0,0.00027123,2]
[424457927,1780926656000,-151.53027978,0.00027151,30]
[424457928,1780926656000,-152.0,0.00027191,26]
[424457934,1780926656000,-4526.61205198,0.0002739,7]
[424457924,1780926656000,-1575.0,0.00027123,2]
[424457932,1780926656000,-151.53027978,0.00027315,30]
[424457922,1780926656000,-20480.23085432,0.00027111,2]
[424457923,1780926656000,-18002.0,0.00027123,2]
[424457930,1780926656000,-657.60811232,0.000273,30]
[424457921,1780926656000,-394.0,0.00027091,7]
[424457931,1780926656000,-657.60811232,0.000273,30]
[424457947,1780926656000,-240.60887654,0.00027397,7]
[424457946,1780926656000,-180.55019158,0.00027397,7]
[424457938,1780926656000,-305.54297809,0.00027397,7]
[424457939,1780926656000,-215.23467513,0.00027397,7]
[424457937,1780926656000,-500.0,0.00027396,13]
[424457935,1780926656000,-4186.59414863,0.0002739,2]
[424457945,1780926656000,-235.40959062,0.00027397,7]
[424457940,1780926656000,-194.37089325,0.00027397,7]
[424457941,1780926656000,-192.01406477,0.00027397,7]
[424457944,1780926656000,-291.41412589,0.00027397,7]
[424457943,1780926656000,-1255.75,0.00027397,2]
[424457942,1780926656000,-237.94156744,0.00027397,7]
[424457949,1780926656000,-150.0,0.00027397,2]
[424457933,1780926656000,-700.0,0.0002733,7]
[424457936,1780926656000,-8271.12503378,0.0002739,2]
[424457917,1780926656000,-250.0,0.00027,2]
[424457891,1780926656000,-1488.266505,0.00026384,2]
[424457918,1780926656000,-530.0,0.00027,2]
[424457956,1780926656000,-150.0,0.00027397,2]
[424457892,1780926656000,-437.12118883,0.00026397,2]
[424457890,1780926656000,-1488.266505,0.00026384,2]
[424457893,1780926656000,-353.11438593,0.00026397,2]
[424457894,1780926656000,-270.82528737,0.00026397,2]
[424457895,1780926656000,-179.7283781,0.00026397,2]
[424457898,1780926656000,-253.45800054,0.00026397,2]
[424457899,1780926656000,-259.0586191,0.00026397,2]
[424457897,1780926656000,-288.2710262,0.00026397,2]
[424457904,1780926656000,-152.0,0.00026564,24]
[424457907,1780926656000,-172.0,0.00026641,7]
[424457900,1780926656000,-269.87459348,0.00026397,2]
[424457906,1780926656000,-151.53027978,0.0002663,30]
[424457914,1780926656000,-275.0,0.00026925,2]
[424457901,1780926656000,-27965.83547427,0.000264,2]
[424457903,1780926656000,-200.0,0.00026425,2]
[424457902,1780926656000,-2000.0,0.00026417,2]
[424457896,1780926656000,-173.15844428,0.00026397,2]
[424457909,1780926656000,-300.45,0.0002673,2]
[424457920,1780926656000,-1255.75,0.00027006,2]
[424457908,1780926656000,-151.0,0.0002669,60]
[424457919,1780926656000,-151.0,0.00027,4]
[424457910,1780926656000,-7130.07,0.00026755,7]
[424457912,1780926656000,-152.0,0.00026877,25]
[424457911,1780926656000,-151.53027978,0.00026795,30]
[424457913,1780926656000,-171496.74,0.000269,2]
[424457916,1780926656000,-159.0,0.00027,20]
[424457915,1780926656000,-151.53027978,0.00026986,30]
[424457905,1780926656000,-1255.75,0.00026614,2]
[424457955,1780926656000,-150.0,0.00027397,2]
[424457950,1780926656000,-150.0,0.00027397,2]
[424457953,1780926656000,-150.0,0.00027397,2]
[424457981,1780926656000,-150.0,0.00027397,2]
[424457980,1780926656000,-150.0,0.00027397,2]
[424457988,1780926656000,-150.0,0.00027397,2]
[424457991,1780926656000,-150.0,0.00027397,2]
[424457998,1780926656000,-150.0,0.00027397,2]
[424457992,1780926656000,-150.0,0.00027397,2]
[424457990,1780926656000,-150.0,0.00027397,2]
[424457993,1780926656000,-150.0,0.00027397,2]
[424457987,1780926656000,-150.0,0.00027397,2]
[424457989,1780926656000,-150.0,0.00027397,2]
[424457994,1780926656000,-150.0,0.00027397,2]
[424457996,1780926656000,-150.0,0.00027397,2]
[424457995,1780926656000,-150.0,0.00027397,2]
[424457983,1780926656000,-150.0,0.00027397,2]
[424457997,1780926656000,-150.0,0.00027397,2]
[424458001,1780926656000,-150.0,0.00027397,2]
[424458000,1780926656000,-150.0,0.00027397,2]
[424458002,1780926656000,-150.0,0.00027397,2]
[424458003,1780926656000,-150.0,0.00027397,2]
[424458005,1780926656000,-150.0,0.00027397,2]
[424458009,1780926656000,-150.0,0.00027397,2]
[424458007,1780926656000,-150.0,0.00027397,2]
[424458008,1780926656000,-150.0,0.00027397,2]
[424458006,1780926656000,-150.0,0.00027397,2]
[424458011,1780926656000,-150.0,0.00027397,2]
[424458010,1780926656000,-150.0,0.00027397,2]